[Event "*** Titled Tuesday Blitz"]
[Site "Chess.com"]
[Date "2020.12.29"]
[Round "7"]
[White "Mikasinski"]
[Black "kuban1991"]
[Result "0-1"]
[WhiteElo "2521"]
[BlackElo "2751"]
[TimeControl "180+1"]
[EndTime "11:17:10 PST"]
[Termination "kuban1991 won by checkmate"]

1. e4 {[%clk 0:03:00.9]} 1... e6 {[%clk 0:03:00.1]} 2. d4 {[%clk 0:02:59.9]}
2... d5 {[%clk 0:03:01]} 3. Nc3 {[%clk 0:02:59.2]} 3... Bb4 {[%clk 0:03:00]} 4.
e5 {[%clk 0:02:59.4]} 4... c5 {[%clk 0:02:59.6]} 5. a3 {[%clk 0:03:00.1]} 5...
Bxc3+ {[%clk 0:03:00.2]} 6. bxc3 {[%clk 0:03:01]} 6... Nc6 {[%clk 0:03:01.1]} 7.
h4 {[%clk 0:03:00.9]} 7... Bd7 {[%clk 0:03:00.6]} 8. h5 {[%clk 0:03:00.7]} 8...
Qa5 {[%clk 0:03:01.2]} 9. Bd2 {[%clk 0:03:00.1]} 9... O-O-O {[%clk 0:03:00.6]}
10. h6 {[%clk 0:02:59.8]} 10... gxh6 {[%clk 0:03:01.5]} 11. Nf3 {[%clk
0:02:59.6]} 11... c4 {[%clk 0:03:01.3]} 12. g3 {[%clk 0:02:45.1]} 12... f5
{[%clk 0:03:00.6]} 13. exf6 {[%clk 0:02:44.4]} 13... Nxf6 {[%clk 0:02:59.6]} 14.
Qe2 {[%clk 0:02:23.1]} 14... Ne4 {[%clk 0:02:50.6]} 15. Qe3 {[%clk 0:02:22.5]}
15... Rdf8 {[%clk 0:02:50.2]} 16. Bg2 {[%clk 0:02:10.1]} 16... Rf7 {[%clk
0:02:47.7]} 17. Ne5 {[%clk 0:01:33.2]} 17... Nxe5 {[%clk 0:02:46]} 18. dxe5
{[%clk 0:01:34.1]} 18... Nxf2 {[%clk 0:02:42.3]} 19. Rf1 {[%clk 0:01:31.5]}
19... Rhf8 {[%clk 0:02:21.5]} 20. Qd4 {[%clk 0:01:23.1]} 20... Ne4 {[%clk
0:01:50.4]} 21. Rxf7 {[%clk 0:01:22.6]} 21... Rxf7 {[%clk 0:01:51.3]} 22. Bxe4
{[%clk 0:01:21.3]} 22... dxe4 {[%clk 0:01:51.3]} 23. Qxc4+ {[%clk 0:01:05.3]}
23... Kb8 {[%clk 0:01:45.9]} 24. Qxe4 {[%clk 0:00:55.1]} 24... Bc6 {[%clk
0:01:44.3]} 25. Qd4 {[%clk 0:00:41.2]} 25... Rd7 {[%clk 0:01:38.6]} 26. Qf4
{[%clk 0:00:35.2]} 26... Qd5 {[%clk 0:01:38.4]} 27. O-O-O {[%clk 0:00:32.1]}
27... Qa2 {[%clk 0:01:32.6]} 28. Qf8+ {[%clk 0:00:24.1]} 28... Kc7 {[%clk
0:01:31.7]} 29. Qb4 {[%clk 0:00:24.4]} 29... Qa1+ {[%clk 0:01:24.9]} 30. Qb1
{[%clk 0:00:24.8]} 30... Qxa3+ {[%clk 0:01:25.5]} 31. Qb2 {[%clk 0:00:25.4]}
31... Qxb2+ {[%clk 0:01:18.5]} 32. Kxb2 {[%clk 0:00:25.4]} 32... Bf3 {[%clk
0:01:19.4]} 33. Rf1 {[%clk 0:00:23.5]} 33... Be2 {[%clk 0:01:15.8]} 34. Rf6
{[%clk 0:00:08.3]} 34... Rxd2 {[%clk 0:01:13.9]} 35. Rxh6 {[%clk 0:00:07.9]}
35... Bd3 {[%clk 0:01:12.9]} 36. Rxe6 {[%clk 0:00:04.6]} 36... Rxc2+ {[%clk
0:01:12.5]} 37. Kb3 {[%clk 0:00:04.6]} 37... b5 {[%clk 0:01:09.9]} 38. Re7+
{[%clk 0:00:04.7]} 38... Kb6 {[%clk 0:01:09.7]} 39. g4 {[%clk 0:00:03.4]} 39...
Re2 {[%clk 0:01:09.7]} 40. g5 {[%clk 0:00:03]} 40... Bc4+ {[%clk 0:01:10.2]} 41.
Kb4 {[%clk 0:00:02.2]} 41... a5+ {[%clk 0:01:10.5]} 42. Ka3 {[%clk 0:00:02.5]}
42... Ra2# {[%clk 0:00:21.2]} 0-1

[Event "*** Titled Tuesday Blitz"]
[Site "Chess.com"]
[Date "2020.12.29"]
[Round "7"]
[White "PawnEatingZombie"]
[Black "The_Machine04"]
[Result "0-1"]
[WhiteElo "2248"]
[BlackElo "2422"]
[TimeControl "180+1"]
[EndTime "11:17:10 PST"]
[Termination "The_Machine04 won by resignation"]

1. d4 {[%clk 0:02:46]} 1... d6 {[%clk 0:02:59.4]} 2. e4 {[%clk 0:02:44.7]} 2...
Nf6 {[%clk 0:02:59]} 3. Nc3 {[%clk 0:02:44.8]} 3... e5 {[%clk 0:02:58.6]} 4. Nf3
{[%clk 0:02:43.7]} 4... Nbd7 {[%clk 0:02:57.8]} 5. Bc4 {[%clk 0:02:42.9]} 5...
Be7 {[%clk 0:02:57.4]} 6. O-O {[%clk 0:02:42.5]} 6... c6 {[%clk 0:02:57.3]} 7.
a4 {[%clk 0:02:42.1]} 7... Qc7 {[%clk 0:02:55.3]} 8. b3 {[%clk 0:02:41.9]} 8...
h6 {[%clk 0:02:53.6]} 9. Bb2 {[%clk 0:02:41.2]} 9... Nf8 {[%clk 0:02:53.3]} 10.
Bd3 {[%clk 0:02:36.5]} 10... Ng6 {[%clk 0:02:52.6]} 11. Ne2 {[%clk 0:02:35.8]}
11... Bg4 {[%clk 0:02:50.8]} 12. Ng3 {[%clk 0:02:31.5]} 12... O-O {[%clk
0:02:34.9]} 13. h3 {[%clk 0:02:31]} 13... Bd7 {[%clk 0:02:30.4]} 14. Nf5 {[%clk
0:02:18.9]} 14... Rae8 {[%clk 0:02:29.5]} 15. dxe5 {[%clk 0:02:10.8]} 15... dxe5
{[%clk 0:02:28.9]} 16. Nxe7+ {[%clk 0:01:58.1]} 16... Rxe7 {[%clk 0:02:24.1]}
17. Ba3 {[%clk 0:01:51.1]} 17... c5 {[%clk 0:02:23]} 18. Re1 {[%clk 0:01:47.1]}
18... Rd8 {[%clk 0:02:20.4]} 19. Qc1 {[%clk 0:01:44.5]} 19... b6 {[%clk
0:02:10.8]} 20. Qe3 {[%clk 0:01:33.4]} 20... Be6 {[%clk 0:02:06.7]} 21. Bb2
{[%clk 0:01:32.5]} 21... Nd7 {[%clk 0:01:56.1]} 22. Rad1 {[%clk 0:01:29.5]}
22... f6 {[%clk 0:01:55]} 23. Kh2 {[%clk 0:01:10.4]} 23... Ndf8 {[%clk
0:01:53.8]} 24. g3 {[%clk 0:01:08.7]} 24... Red7 {[%clk 0:01:46.4]} 25. Qe2
{[%clk 0:01:06.4]} 25... Bf7 {[%clk 0:01:44.5]} 26. c3 {[%clk 0:00:58.4]} 26...
Ne7 {[%clk 0:01:40.1]} 27. Bc4 {[%clk 0:00:53.5]} 27... Rxd1 {[%clk 0:01:33]}
28. Bxf7+ {[%clk 0:00:52.5]} 28... Kxf7 {[%clk 0:01:32.7]} 29. Rxd1 {[%clk
0:00:53.1]} 29... Rxd1 {[%clk 0:01:33.6]} 30. Qxd1 {[%clk 0:00:52.8]} 30... Qd7
{[%clk 0:01:34]} 31. Qxd7 {[%clk 0:00:50.3]} 31... Nxd7 {[%clk 0:01:34.9]} 32.
Nd2 {[%clk 0:00:46.1]} 32... Ke6 {[%clk 0:01:33.3]} 33. Kg2 {[%clk 0:00:45.7]}
33... Nc8 {[%clk 0:01:32.9]} 34. Kf3 {[%clk 0:00:44.4]} 34... Nd6 {[%clk
0:01:33]} 35. Ke3 {[%clk 0:00:42.8]} 35... c4 {[%clk 0:01:31.1]} 36. b4 {[%clk
0:00:38.7]} 36... a6 {[%clk 0:01:30.2]} 37. Nb1 {[%clk 0:00:31.6]} 37... b5
{[%clk 0:01:22.2]} 38. a5 {[%clk 0:00:30.4]} 38... g6 {[%clk 0:01:18.2]} 39. g4
{[%clk 0:00:28.1]} 39... f5 {[%clk 0:01:14.8]} 40. gxf5+ {[%clk 0:00:27.4]}
40... gxf5 {[%clk 0:01:15.7]} 41. exf5+ {[%clk 0:00:17.8]} 41... Nxf5+ {[%clk
0:01:15.3]} 42. Kf3 {[%clk 0:00:14.9]} 42... Nf6 {[%clk 0:01:14.3]} 43. Nd2
{[%clk 0:00:14.3]} 43... Nd6 {[%clk 0:01:10.9]} 44. Bc1 {[%clk 0:00:12]} 44...
Kf5 {[%clk 0:01:08.2]} 45. Nf1 {[%clk 0:00:10.2]} 45... h5 {[%clk 0:01:04.3]}
46. Ng3+ {[%clk 0:00:08.9]} 46... Kg6 {[%clk 0:01:00.2]} 47. h4 {[%clk
0:00:08.5]} 47... Nf5 {[%clk 0:00:55.1]} 48. Bg5 {[%clk 0:00:06.6]} 48... Nxg3
{[%clk 0:00:51]} 49. fxg3 {[%clk 0:00:06.4]} 49... Nd5 {[%clk 0:00:48.6]} 50.
Bd2 {[%clk 0:00:05.3]} 50... Kf5 {[%clk 0:00:47.6]} 51. Be1 {[%clk 0:00:04.7]}
51... e4+ {[%clk 0:00:46.7]} 52. Ke2 {[%clk 0:00:02.8]} 52... Kg4 {[%clk
0:00:45.2]} 53. Bf2 {[%clk 0:00:02.5]} 53... Nxc3+ {[%clk 0:00:44.1]} 54. Ke3
{[%clk 0:00:02.7]} 54... Nd1+ {[%clk 0:00:42]} 0-1

[Event "*** Titled Tuesday Blitz"]
[Site "Chess.com"]
[Date "2020.12.29"]
[Round "7"]
[White "ferdipy"]
[Black "Region_07"]
[Result "0-1"]
[WhiteElo "2185"]
[BlackElo "2474"]
[TimeControl "180+1"]
[EndTime "11:17:11 PST"]
[Termination "Region_07 won by resignation"]

1. d4 {[%clk 0:03:00]} 1... d5 {[%clk 0:02:59.6]} 2. Nf3 {[%clk 0:03:00]} 2...
Nc6 {[%clk 0:03:00]} 3. Bg5 {[%clk 0:03:00.3]} 3... Bg4 {[%clk 0:02:56.1]} 4.
Nbd2 {[%clk 0:03:00.5]} 4... Nf6 {[%clk 0:02:55.7]} 5. e3 {[%clk 0:03:00.5]}
5... h6 {[%clk 0:02:55.4]} 6. Bf4 {[%clk 0:03:00.6]} 6... e6 {[%clk 0:02:55.1]}
7. Bd3 {[%clk 0:03:00.6]} 7... Bd6 {[%clk 0:02:54.7]} 8. Bg3 {[%clk 0:03:01]}
8... O-O {[%clk 0:02:53.7]} 9. O-O {[%clk 0:03:01.2]} 9... Qe7 {[%clk
0:02:46.5]} 10. c4 {[%clk 0:02:59.9]} 10... Bxg3 {[%clk 0:02:41.1]} 11. hxg3
{[%clk 0:02:59.5]} 11... Rad8 {[%clk 0:02:38.6]} 12. a3 {[%clk 0:02:51.8]} 12...
e5 {[%clk 0:02:35]} 13. dxe5 {[%clk 0:02:27.7]} 13... Nxe5 {[%clk 0:02:24.2]}
14. Be2 {[%clk 0:02:26.5]} 14... Nxc4 {[%clk 0:02:15.4]} 15. Nxc4 {[%clk
0:02:24.3]} 15... dxc4 {[%clk 0:02:16.3]} 16. Qa4 {[%clk 0:02:23.9]} 16... a6
{[%clk 0:01:51.9]} 17. Qxc4 {[%clk 0:02:22.2]} 17... c5 {[%clk 0:01:45.1]} 18.
Rac1 {[%clk 0:02:21.6]} 18... Ne4 {[%clk 0:01:40.7]} 19. Rfd1 {[%clk 0:02:16.9]}
19... b5 {[%clk 0:01:37.8]} 20. Qc2 {[%clk 0:02:14.6]} 20... c4 {[%clk
0:01:27.6]} 21. Nd4 {[%clk 0:02:04.7]} 21... Bxe2 {[%clk 0:01:26.3]} 22. Qxe2
{[%clk 0:02:04.7]} 22... Nc5 {[%clk 0:01:23.8]} 23. Kh2 {[%clk 0:01:51.3]} 23...
Nd3 {[%clk 0:01:21.6]} 24. Nc6 {[%clk 0:01:48.9]} 24... Qf6 {[%clk 0:01:14.7]}
25. Nxd8 {[%clk 0:01:45.6]} 25... Nxc1 {[%clk 0:01:11.4]} 26. Rxc1 {[%clk
0:01:38.5]} 26... Rxd8 {[%clk 0:01:11.3]} 27. e4 {[%clk 0:01:37.4]} 27... Rd3
{[%clk 0:00:59]} 28. f3 {[%clk 0:01:22.4]} 28... Qd4 {[%clk 0:00:53.7]} 29. Rc2
{[%clk 0:01:21.3]} 29... Rd1 {[%clk 0:00:51.6]} 30. Qf2 {[%clk 0:01:17.5]} 30...
Qd3 {[%clk 0:00:46.8]} 31. Re2 {[%clk 0:01:14.7]} 31... Qb1 {[%clk 0:00:37.9]}
32. g4 {[%clk 0:01:11.5]} 32... Qc1 {[%clk 0:00:37]} 33. f4 {[%clk 0:00:56.1]}
33... Rf1 {[%clk 0:00:34.5]} 34. Qe3 {[%clk 0:00:46.3]} 34... Qxe3 {[%clk
0:00:33.7]} 35. Rxe3 {[%clk 0:00:46.9]} 35... Rxf4 {[%clk 0:00:31.8]} 36. Kg3
{[%clk 0:00:47.1]} 36... g5 {[%clk 0:00:29.6]} 37. e5 {[%clk 0:00:47.2]} 37...
Kf8 {[%clk 0:00:21.9]} 38. e6 {[%clk 0:00:46.7]} 38... Ke7 {[%clk 0:00:17.9]}
39. exf7+ {[%clk 0:00:44.4]} 39... Kxf7 {[%clk 0:00:18.8]} 40. Re5 {[%clk
0:00:43.8]} 40... Rd4 {[%clk 0:00:18.8]} 41. Rc5 {[%clk 0:00:42]} 41... Rd3+
{[%clk 0:00:19]} 42. Kh2 {[%clk 0:00:41.7]} 42... Rb3 {[%clk 0:00:19.1]} 43.
Rc7+ {[%clk 0:00:41.1]} 43... Kf6 {[%clk 0:00:18.8]} 44. Rc6+ {[%clk 0:00:41.2]}
44... Ke5 {[%clk 0:00:19]} 45. Rxa6 {[%clk 0:00:41.5]} 45... Rxb2 {[%clk
0:00:19.4]} 46. Rxh6 {[%clk 0:00:42]} 46... c3 {[%clk 0:00:19.6]} 47. Rc6 {[%clk
0:00:42.2]} 47... c2 {[%clk 0:00:19]} 48. Kg3 {[%clk 0:00:41.7]} 48... Kd4
{[%clk 0:00:18.1]} 49. Kf3 {[%clk 0:00:39.9]} 49... Rb3+ {[%clk 0:00:18]} 50.
Ke2 {[%clk 0:00:37.9]} 50... Rc3 {[%clk 0:00:18.9]} 51. Rd6+ {[%clk 0:00:36.4]}
51... Kc5 {[%clk 0:00:18.7]} 0-1

[Event "*** Titled Tuesday Blitz"]
[Site "Chess.com"]
[Date "2020.12.29"]
[Round "7"]
[White "Pantata007"]
[Black "Tekushka"]
[Result "1-0"]
[WhiteElo "2298"]
[BlackElo "2412"]
[TimeControl "180+1"]
[EndTime "11:17:17 PST"]
[Termination "Pantata007 won on time"]

1. d4 {[%clk 0:03:00.8]} 1... Nf6 {[%clk 0:02:59.1]} 2. c4 {[%clk 0:02:59.3]}
2... e6 {[%clk 0:02:59.3]} 3. Nc3 {[%clk 0:02:59.3]} 3... Bb4 {[%clk 0:02:59]}
4. e3 {[%clk 0:02:59.7]} 4... O-O {[%clk 0:02:58.2]} 5. Ne2 {[%clk 0:02:59.6]}
5... d5 {[%clk 0:02:56.8]} 6. a3 {[%clk 0:02:59.1]} 6... Bd6 {[%clk 0:02:56.5]}
7. Ng3 {[%clk 0:02:57.5]} 7... b6 {[%clk 0:02:38.7]} 8. Bd3 {[%clk 0:02:56.7]}
8... dxc4 {[%clk 0:02:25.7]} 9. Bxc4 {[%clk 0:02:55.5]} 9... Bb7 {[%clk
0:02:24.7]} 10. O-O {[%clk 0:02:55.4]} 10... Nbd7 {[%clk 0:02:21]} 11. b4 {[%clk
0:02:30.1]} 11... Qe7 {[%clk 0:02:02.9]} 12. Qd3 {[%clk 0:02:16.5]} 12... Bxg3
{[%clk 0:01:55.7]} 13. hxg3 {[%clk 0:02:14.2]} 13... e5 {[%clk 0:01:55.5]} 14.
d5 {[%clk 0:01:29.2]} 14... a6 {[%clk 0:01:40.5]} 15. e4 {[%clk 0:01:25.3]}
15... b5 {[%clk 0:01:39.5]} 16. Bb3 {[%clk 0:01:25.7]} 16... Rfd8 {[%clk
0:01:22.6]} 17. f3 {[%clk 0:01:06.2]} 17... h5 {[%clk 0:01:18.1]} 18. Be3 {[%clk
0:01:03.3]} 18... Nh7 {[%clk 0:01:14.9]} 19. Rac1 {[%clk 0:00:56.4]} 19... Ndf8
{[%clk 0:01:13.9]} 20. Bc5 {[%clk 0:00:51.2]} 20... Qg5 {[%clk 0:01:13]} 21. f4
{[%clk 0:00:43.4]} 21... exf4 {[%clk 0:00:42.7]} 22. gxf4 {[%clk 0:00:44.3]}
22... Qg4 {[%clk 0:00:42.8]} 23. Bd1 {[%clk 0:00:35.1]} 23... Qg6 {[%clk
0:00:33.8]} 24. f5 {[%clk 0:00:31.9]} 24... Qg5 {[%clk 0:00:32.5]} 25. Be3
{[%clk 0:00:30.7]} 25... Qh4 {[%clk 0:00:32]} 26. Bf3 {[%clk 0:00:12.4]} 26...
Nf6 {[%clk 0:00:29]} 27. Qe2 {[%clk 0:00:07.1]} 27... Ng4 {[%clk 0:00:27]} 28.
Bxg4 {[%clk 0:00:07]} 28... hxg4 {[%clk 0:00:27.1]} 29. Rf4 {[%clk 0:00:06.5]}
29... Re8 {[%clk 0:00:14]} 30. Bd4 {[%clk 0:00:03.9]} 30... f6 {[%clk
0:00:11.5]} 31. Rxg4 {[%clk 0:00:02.6]} 31... Qh6 {[%clk 0:00:11.1]} 32. Qf3
{[%clk 0:00:02.4]} 32... Nh7 {[%clk 0:00:09.7]} 33. Rd1 {[%clk 0:00:02.1]} 33...
Ng5 {[%clk 0:00:09.1]} 34. Qe2 {[%clk 0:00:02.3]} 34... Rad8 {[%clk 0:00:06.6]}
35. Be3 {[%clk 0:00:02.4]} 35... Qh5 {[%clk 0:00:04.1]} 36. Bxg5 {[%clk
0:00:02.6]} 36... fxg5 {[%clk 0:00:04.2]} 37. e5 {[%clk 0:00:02.8]} 37... Qf7
{[%clk 0:00:02.2]} 38. e6 {[%clk 0:00:02.6]} 38... Qf6 {[%clk 0:00:01.9]} 39.
Rd3 {[%clk 0:00:02.7]} 1-0

[Event "*** Titled Tuesday Blitz"]
[Site "Chess.com"]
[Date "2020.12.29"]
[Round "7"]
[White "Rytenko_V"]
[Black "Chuchofrio1"]
[Result "1/2-1/2"]
[WhiteElo "2419"]
[BlackElo "2278"]
[TimeControl "180+1"]
[EndTime "11:17:18 PST"]
[Termination "Game drawn by repetition"]

1. d4 {[%clk 0:03:00.9]} 1... d5 {[%clk 0:02:59.6]} 2. Nf3 {[%clk 0:03:00.7]}
2... Nf6 {[%clk 0:02:59.2]} 3. Bg5 {[%clk 0:03:01.2]} 3... Ne4 {[%clk
0:02:58.5]} 4. Bf4 {[%clk 0:03:01.3]} 4... c5 {[%clk 0:02:58.2]} 5. c3 {[%clk
0:03:01.3]} 5... f6 {[%clk 0:02:54.6]} 6. Nbd2 {[%clk 0:03:01.2]} 6... g5 {[%clk
0:02:54.5]} 7. Bg3 {[%clk 0:02:56.7]} 7... h5 {[%clk 0:02:54.6]} 8. Bxb8 {[%clk
0:02:48.6]} 8... Rxb8 {[%clk 0:02:52.7]} 9. Nxe4 {[%clk 0:02:48.8]} 9... dxe4
{[%clk 0:02:50.5]} 10. Nd2 {[%clk 0:02:49.4]} 10... Bf5 {[%clk 0:02:34.6]} 11.
Qa4+ {[%clk 0:02:39.9]} 11... b5 {[%clk 0:02:27.6]} 12. Qxa7 {[%clk 0:02:33.1]}
12... cxd4 {[%clk 0:02:27]} 13. Qxd4 {[%clk 0:02:30.5]} 13... Qxd4 {[%clk
0:02:24.8]} 14. cxd4 {[%clk 0:02:30.6]} 14... e6 {[%clk 0:02:23.8]} 15. e3
{[%clk 0:02:28.6]} 15... Bb4 {[%clk 0:02:23.2]} 16. a3 {[%clk 0:02:28.6]} 16...
Ba5 {[%clk 0:02:12.2]} 17. b4 {[%clk 0:02:28.2]} 17... Bc7 {[%clk 0:02:07.8]}
18. Be2 {[%clk 0:02:21.1]} 18... h4 {[%clk 0:02:01.2]} 19. h3 {[%clk 0:02:18.4]}
19... Ke7 {[%clk 0:01:58.3]} 20. Nb3 {[%clk 0:02:18.4]} 20... e5 {[%clk
0:01:52]} 21. Kd2 {[%clk 0:02:01]} 21... Rhd8 {[%clk 0:01:49]} 22. Rhd1 {[%clk
0:01:58.1]} 22... Be6 {[%clk 0:01:45.9]} 23. Kc3 {[%clk 0:01:30.5]} 23... Bxb3
{[%clk 0:01:31.5]} 24. Kxb3 {[%clk 0:01:31.4]} 24... exd4 {[%clk 0:01:31.5]} 25.
Rxd4 {[%clk 0:01:31.6]} 25... Rxd4 {[%clk 0:01:21.5]} 26. exd4 {[%clk
0:01:32.5]} 26... Bb6 {[%clk 0:01:20.6]} 27. Rd1 {[%clk 0:01:22.5]} 27... Ba7
{[%clk 0:01:14.6]} 28. f3 {[%clk 0:01:19.1]} 28... e3 {[%clk 0:01:11.6]} 29. Rd3
{[%clk 0:01:18.1]} 29... Kf7 {[%clk 0:01:08.3]} 30. Rxe3 {[%clk 0:01:12.2]}
30... Bxd4 {[%clk 0:01:08.1]} 31. Rd3 {[%clk 0:01:10.5]} 31... Be5 {[%clk
0:01:07.3]} 32. Rd5 {[%clk 0:01:10.3]} 32... Rc8 {[%clk 0:01:02.6]} 33. Rc5
{[%clk 0:01:05]} 33... Rd8 {[%clk 0:00:45.6]} 34. Bxb5 {[%clk 0:01:03.6]} 34...
Rd2 {[%clk 0:00:43.5]} 35. Rc2 {[%clk 0:01:03.9]} 35... Rd1 {[%clk 0:00:41.2]}
36. a4 {[%clk 0:00:55.4]} 36... Rb1+ {[%clk 0:00:39.8]} 37. Kc4 {[%clk
0:00:55.3]} 37... Bd6 {[%clk 0:00:39.4]} 38. Kd5 {[%clk 0:00:47.4]} 38... Bxb4
{[%clk 0:00:38.2]} 39. Rc7+ {[%clk 0:00:47.4]} 39... Kf8 {[%clk 0:00:34.3]} 40.
Ke6 {[%clk 0:00:43.6]} 40... Ba5 {[%clk 0:00:19.5]} 41. Rf7+ {[%clk 0:00:36.8]}
41... Kg8 {[%clk 0:00:19.1]} 42. Kxf6 {[%clk 0:00:33.6]} 42... Bd8+ {[%clk
0:00:19]} 43. Kg6 {[%clk 0:00:31.9]} 43... Re1 {[%clk 0:00:18.3]} 44. Bc4 {[%clk
0:00:24.8]} 44... Re8 {[%clk 0:00:14.3]} 45. Rd7+ {[%clk 0:00:16.7]} 45... Kf8
{[%clk 0:00:14.4]} 46. Rf7+ {[%clk 0:00:17.3]} 46... Kg8 {[%clk 0:00:14.6]} 47.
Rh7+ {[%clk 0:00:18.1]} 47... Kf8 {[%clk 0:00:14.6]} 48. Rh8+ {[%clk 0:00:18.3]}
48... Ke7 {[%clk 0:00:14.9]} 49. Rh7+ {[%clk 0:00:17.8]} 49... Kf8 {[%clk
0:00:15.4]} 50. Rf7+ {[%clk 0:00:16.1]} 50... Kg8 {[%clk 0:00:15.2]} 1/2-1/2

[Event "*** Titled Tuesday Blitz"]
[Site "Chess.com"]
[Date "2020.12.29"]
[Round "7"]
[White "Roza_Idrisova"]
[Black "szefru"]
[Result "1-0"]
[WhiteElo "2167"]
[BlackElo "2183"]
[TimeControl "180+1"]
[EndTime "11:17:19 PST"]
[Termination "Roza_Idrisova won by resignation"]

1. d4 {[%clk 0:03:00.9]} 1... d5 {[%clk 0:02:59.8]} 2. Nf3 {[%clk 0:03:00.9]}
2... Nf6 {[%clk 0:02:59.8]} 3. Bg5 {[%clk 0:03:00.2]} 3... e6 {[%clk 0:02:59]}
4. c3 {[%clk 0:03:00.2]} 4... Be7 {[%clk 0:02:59.2]} 5. Nbd2 {[%clk 0:02:59.8]}
5... c5 {[%clk 0:02:59.1]} 6. e3 {[%clk 0:02:59.7]} 6... Nc6 {[%clk 0:02:59.5]}
7. a4 {[%clk 0:02:58.9]} 7... a5 {[%clk 0:02:58.9]} 8. Bb5 {[%clk 0:02:57.5]}
8... Bd7 {[%clk 0:02:58.4]} 9. O-O {[%clk 0:02:56.7]} 9... O-O {[%clk
0:02:52.3]} 10. Re1 {[%clk 0:02:56.1]} 10... h6 {[%clk 0:02:51.9]} 11. Bh4
{[%clk 0:02:55.4]} 11... Ne4 {[%clk 0:02:51.1]} 12. Bxe7 {[%clk 0:02:53.5]}
12... Qxe7 {[%clk 0:02:51.9]} 13. Nxe4 {[%clk 0:02:50.2]} 13... dxe4 {[%clk
0:02:51.5]} 14. Nd2 {[%clk 0:02:49.9]} 14... f5 {[%clk 0:02:50.3]} 15. dxc5
{[%clk 0:02:47.8]} 15... Qxc5 {[%clk 0:02:49.5]} 16. Nb3 {[%clk 0:02:47.6]}
16... Qe7 {[%clk 0:02:47.7]} 17. Nd4 {[%clk 0:02:39.3]} 17... Nxd4 {[%clk
0:02:37.6]} 18. cxd4 {[%clk 0:02:35.8]} 18... Bxb5 {[%clk 0:02:34.5]} 19. axb5
{[%clk 0:02:35.2]} 19... b6 {[%clk 0:02:34.5]} 20. Qb3 {[%clk 0:02:34.2]} 20...
Kh7 {[%clk 0:02:33.5]} 21. Rec1 {[%clk 0:02:32.6]} 21... Rfd8 {[%clk 0:02:32.4]}
22. Rc6 {[%clk 0:02:29.6]} 22... Rd6 {[%clk 0:02:32.2]} 23. Rac1 {[%clk
0:02:28.9]} 23... Rad8 {[%clk 0:02:30.4]} 24. g3 {[%clk 0:02:22.9]} 24... h5
{[%clk 0:02:29.4]} 25. h4 {[%clk 0:02:22]} 25... g5 {[%clk 0:02:25.5]} 26. Rc7
{[%clk 0:02:19.5]} 26... R8d7 {[%clk 0:02:24.9]} 27. Rxd7 {[%clk 0:02:18.7]}
27... Rxd7 {[%clk 0:02:24.4]} 28. hxg5 {[%clk 0:02:18.3]} 28... Qxg5 {[%clk
0:02:15.5]} 29. Qxe6 {[%clk 0:02:16.6]} 29... Re7 {[%clk 0:02:12]} 30. Qc8
{[%clk 0:02:10.9]} 30... h4 {[%clk 0:02:11]} 31. Rc7 {[%clk 0:02:06.7]} 31...
hxg3 {[%clk 0:01:48.6]} 32. Rxe7+ {[%clk 0:02:05.5]} 32... Qxe7 {[%clk
0:01:42.6]} 33. Qxf5+ {[%clk 0:02:04.5]} 33... Kh6 {[%clk 0:01:40]} 34. fxg3
{[%clk 0:02:03.9]} 34... Qb4 {[%clk 0:01:39.1]} 35. Qxe4 {[%clk 0:01:59.6]}
35... Qe1+ {[%clk 0:01:38]} 36. Kg2 {[%clk 0:01:59.1]} 36... Qe2+ {[%clk
0:01:37.8]} 37. Kh3 {[%clk 0:01:57.6]} 37... Qf1+ {[%clk 0:01:30]} 38. Kg4
{[%clk 0:01:56.2]} 38... Qxb5 {[%clk 0:01:22.3]} 39. d5 {[%clk 0:01:52.1]} 39...
Qe2+ {[%clk 0:01:15.4]} 40. Kf5 {[%clk 0:01:50.3]} 40... Qh5+ {[%clk 0:01:12.1]}
41. Ke6 {[%clk 0:01:49.7]} 41... Qe8+ {[%clk 0:01:11.6]} 42. Kf5 {[%clk
0:01:47.5]} 42... Qg6+ {[%clk 0:01:11.6]} 43. Ke5 {[%clk 0:01:45.7]} 43... Qg7+
{[%clk 0:01:09.9]} 44. Kd6 {[%clk 0:01:44.1]} 44... Qxb2 {[%clk 0:01:06.2]} 45.
Kd7 {[%clk 0:01:35.6]} 45... Qb5+ {[%clk 0:01:02.2]} 46. Ke7 {[%clk 0:01:32.6]}
46... Qc5+ {[%clk 0:01:01.5]} 47. d6 {[%clk 0:01:31.2]} 47... Qg5+ {[%clk
0:01:01.6]} 48. Kd7 {[%clk 0:01:29.7]} 48... Qb5+ {[%clk 0:01:00.4]} 49. Kd8
{[%clk 0:01:24.7]} 49... Qg5+ {[%clk 0:00:55.6]} 50. Qe7 {[%clk 0:01:23.2]}
50... Qg8+ {[%clk 0:00:55.4]} 51. Kc7 {[%clk 0:01:21.3]} 51... Qc4+ {[%clk
0:00:54.9]} 52. Kxb6 {[%clk 0:01:20.8]} 52... Qb4+ {[%clk 0:00:53.5]} 53. Kc6
{[%clk 0:01:20.3]} 53... Qc4+ {[%clk 0:00:53.3]} 54. Kd7 {[%clk 0:01:19.4]}
54... Qb5+ {[%clk 0:00:51.4]} 55. Ke6 {[%clk 0:01:18]} 55... Qc4+ {[%clk
0:00:50.5]} 56. Kf6 {[%clk 0:01:13.3]} 56... Qc3+ {[%clk 0:00:34.6]} 57. Kf7
{[%clk 0:01:12.5]} 57... Qg7+ {[%clk 0:00:28.5]} 58. Ke8 {[%clk 0:01:11.8]}
58... Qg6+ {[%clk 0:00:27.8]} 59. Kd8 {[%clk 0:01:07.9]} 59... Qg8+ {[%clk
0:00:26]} 60. Kd7 {[%clk 0:01:05.9]} 60... a4 {[%clk 0:00:24.4]} 61. Qe6+ {[%clk
0:01:05.5]} 61... Qxe6+ {[%clk 0:00:22.4]} 62. Kxe6 {[%clk 0:01:05.6]} 62... a3
{[%clk 0:00:23.3]} 63. d7 {[%clk 0:01:05.7]} 63... a2 {[%clk 0:00:24.1]} 64.
d8=Q {[%clk 0:01:05.4]} 64... a1=Q {[%clk 0:00:23.2]} 65. Qf6+ {[%clk 0:01:05]}
65... Qxf6+ {[%clk 0:00:22.8]} 66. Kxf6 {[%clk 0:01:05]} 66... Kh5 {[%clk
0:00:23.7]} 67. e4 {[%clk 0:01:04.2]} 67... Kg4 {[%clk 0:00:24.6]} 68. e5 {[%clk
0:01:04.9]} 1-0